[Event "WYCC 2018 G18"]
[Site "Halkidiki"]
[Date "2018.10.22"]
[Round "4"]
[White "Hamedi Nia, Vesal"]
[Black "Represa Perez, Mireya"]
[Result "1-0"]
[ECO "E11"]
[WhiteElo "1987"]
[BlackElo "2151"]
[Annotator "NA"]
[PlyCount "83"]
[EventDate "2018.10.20"]
[EventType "swiss"]
[EventCountry "GRE"]
[SourceTitle "playchess.com"]
[Source "ChessBase"]
[SourceQuality "1"]
[TimeControl "40/5400+30:1800+30"]

1. d4 {[%emt 0:00:00]} Nf6 {[%emt 0:00:00]} 2. c4 {[%emt 0:00:00]} e6 {[%emt 0:00:00]} 3. Nf3 {[%emt 0:00:14]} Bb4+ {[%emt 0:00:10]} 4. Nbd2 {[%emt 0:00:13]} b6 {[%emt 0:01:50]} 5. a3 {[%emt 0:01:34]} Bxd2+ {[%emt 0:02:07]} 6. Qxd2 {[%emt 0:00:15]} Bb7 {[%emt 0:01:31]} 7. e3 {[%emt 0:00:52]} O-O {[%emt 0:01:17]} 8. Be2 {[%emt 0:00:27]} Ne4 {[%emt 0:00:14]} 9. Qc2 {[%emt 0:00:04]} f5 {[%emt 0:00:07]} 10. O-O {[%emt 0:03:20]} d6 {[%emt 0:05:57]} 11. b4 {[%emt 0:04:08]} Rf6 {[%emt 0:04:50]} 12. Bb2 {[%emt 0:13:17]} Rg6 {[%emt 0:03:17]} 13. d5 {[%emt 0:06:45]} e5 {[%emt 0:21:28]} 14. Nd2 {[%emt 0:04:13]} Nxd2 {[%emt 0:06:45]} 15. Qxd2 {[%emt 0:00:06]} Nd7 {[%emt 0:03:00]} 16. Qc2 {[%emt 0:16:24]} Qg5 {[%emt 0:06:27]} 17. g3 {[%emt 0:01:43]} Rf8 {[%emt 0:00:59]} 18. f4 {[%emt 0:00:30]} Qh6 {[%emt 0:06:05]} 19. Rae1 {[%emt 0:29:54]} Bc8 {[%emt 0:03:26]} 20. Bd1 {[%emt 0:08:31]} Qh4 {[%emt 0:20:47]} 21. Qg2 {[%emt 0:02:35]} Qe7 {[%emt 0:00:17]} 22. e4 {[%emt 0:02:44]} fxe4 {[%emt 0:01:44]} 23. Rxe4 {[%emt 0:01:00]} Rgf6 {[%emt 0:07:38]} 24. Rfe1 {[%emt 0:00:55]} Qf7 {[%emt 0:00:38]} 25. Bg4 {[%emt 0:01:16]} Nb8 {[%emt 0:00:50]} 26. Bxc8 {[%emt 0:00:10]} Rxc8 {[%emt 0:00:01]} 27. fxe5 {[%emt 0:00:13]} dxe5 {[%emt 0:00:10]} 28. Bxe5 {[%emt 0:00:10]} Rf5 {[%emt 0:00:44]} 29. Bd4 {[%emt 0:00:32]} Rg5 {[%emt 0:00:35]} 30. Qe2 {[%emt 0:01:02]} Rf8 {[%emt 0:00:40]} 31. Re8 {[%emt 0:00:49]} Nd7 {[%emt 0:00:53]} 32. Re7 {[%emt 0:01:15]} Qf5 {[%emt 0:00:11]} 33. Qe6+ {[%emt 0:00:19]} Qxe6 {[%emt 0:00:05]} 34. dxe6 {[%emt 0:00:25]} Nf6 {[%emt 0:01:23]} 35. Rxc7 {[%emt 0:00:11]} Rg4 {[%emt 0:00:15]} 36. e7 {[%emt 0:01:04]} Re8 {[%emt 0:00:13]} 37. Bf2 {[%emt 0:00:34]} Kf7 {[%emt 0:00:20]} 38. Rxa7 {[%emt 0:00:11]} Rxc4 {[%emt 0:00:07]} 39. Bxb6 {[%emt 0:00:04]} Ne4 {[%emt 0:00:25]} 40. Bd8 {[%emt 0:00:00]} Ng5 {[%emt 0:00:00]} 41. Rf1+ {[%emt 0:00:56]} Kg8 {[%emt 0:01:00]} 42. Rf8+ {[%emt 0:00:26]} 1-0

[Event "WYCC 2018 G18"]
[Site "Halkidiki"]
[Date "2018.10.22"]
[Round "4"]
[White "Stashis, Anna"]
[Black "Antolak, Julia"]
[Result "1/2-1/2"]
[ECO "B22"]
[WhiteElo "1979"]
[BlackElo "2240"]
[Annotator "NA"]
[PlyCount "42"]
[EventDate "2018.10.20"]
[EventType "swiss"]
[EventCountry "GRE"]
[SourceTitle "playchess.com"]
[Source "ChessBase"]
[SourceQuality "1"]
[TimeControl "40/5400+30:1800+30"]

1. e4 {[%emt 0:00:00]} c5 {[%emt 0:00:00]} 2. c3 {[%emt 0:00:00]} d5 {[%emt 0:00:00]} 3. exd5 {[%emt 0:00:00]} Qxd5 {[%emt 0:00:00]} 4. d4 {[%emt 0:00:00]} Nc6 {[%emt 0:00:00]} 5. Nf3 {[%emt 0:00:09]} Bf5 {[%emt 0:00:29]} 6. Be3 {[%emt 0:00:47]} cxd4 {[%emt 0:00:45]} 7. Nxd4 {[%emt 0:23:45]} Nf6 {[%emt 0:00:37]} 8. Nxf5 {[%emt 0:14:58]} Qxf5 {[%emt 0:00:07]} 9. Na3 {[%emt 0:06:04]} e6 {[%emt 0:02:10]} 10. Qb3 {[%emt 0:02:10]} O-O-O {[%emt 0:20:17]} 11. Bb5 {[%emt 0:09:43]} Qd5 {[%emt 0:10:59]} 12. Bxc6 {[%emt 0:11:47]} Qxc6 {[%emt 0:03:25]} 13. O-O {[%emt 0:05:28]} Bc5 {[%emt 0:08:50]} 14. Nc4 {[%emt 0:09:01]} Ng4 {[%emt 0:07:50]} 15. Bxc5 {[%emt 0:04:10]} Qxc5 {[%emt 0:00:06]} 16. h3 {[%emt 0:00:46]} Nf6 {[%emt 0:02:43]} 17. Rae1 {[%emt 0:01:32]} Rd5 {[%emt 0:04:35]} 18. Ne3 $11 {[%emt 0:01:45]} Rd7 {[%emt 0:01:30]} 19. Rd1 {[%emt 0:02:05]} Rhd8 {[%emt 0:02:31]} 20. Rxd7 {[%emt 0:00:58]} Rxd7 {[%emt 0:00:17]} 21. Rd1 {[%emt 0:00:26]} Rxd1+ {[%emt 0:01:12]} 1/2-1/2

[Event "WYCC 2018 G18"]
[Site "Halkidiki"]
[Date "2018.10.22"]
[Round "4"]
[White "Manova, Ivana"]
[Black "Egyed, Judit"]
[Result "1/2-1/2"]
[ECO "B09"]
[WhiteElo "1951"]
[BlackElo "2089"]
[Annotator "NA"]
[PlyCount "62"]
[EventDate "2018.10.20"]
[EventType "swiss"]
[EventCountry "GRE"]
[SourceTitle "playchess.com"]
[Source "ChessBase"]
[SourceQuality "1"]
[TimeControl "40/5400+30:1800+30"]

1. e4 {[%emt 0:00:00]} d6 {[%emt 0:00:00]} 2. d4 {[%emt 0:00:00]} Nf6 {[%emt 0:00:00]} 3. Nc3 {[%emt 0:00:00]} g6 {[%emt 0:00:00]} 4. f4 {[%emt 0:00:22]} Bg7 {[%emt 0:00:00]} 5. Nf3 {[%emt 0:00:27]} O-O {[%emt 0:00:32]} 6. Bd3 {[%emt 0:01:21]} b6 {[%emt 0:04:28]} 7. e5 {[%emt 0:06:40]} Nfd7 {[%emt 0:23:41]} 8. O-O {[%emt 0:17:53]} dxe5 {[%emt 0:17:04]} 9. fxe5 {[%emt 0:04:26]} e6 {[%emt 0:11:16]} 10. Ng5 {[%emt 0:14:00]} h6 {[%emt 0:04:23]} 11. Nxf7 {[%emt 0:07:03]} Rxf7 {[%emt 0:08:59]} 12. Rxf7 {[%emt 0:00:05]} Kxf7 {[%emt 0:00:58]} 13. Qf3+ {[%emt 0:01:08]} Kg8 {[%emt 0:01:36]} 14. Qxa8 {[%emt 0:04:59]} c6 {[%emt 0:01:46]} 15. Qxa7 {[%emt 0:01:33]} c5 {[%emt 0:02:13]} 16. Be3 {[%emt 0:04:25]} cxd4 {[%emt 0:09:44]} 17. Bxd4 {[%emt 0:01:08]} Nc6 {[%emt 0:00:04]} 18. Qa4 {[%emt 0:00:10]} Ndxe5 {[%emt 0:00:46]} 19. Bxe5 {[%emt 0:06:57]} Nxe5 {[%emt 0:00:18]} 20. Qe4 {[%emt 0:02:48]} Qc7 {[%emt 0:01:56]} 21. Nb5 {[%emt 0:06:33]} Qc5+ {[%emt 0:01:12]} 22. Kh1 {[%emt 0:00:16]} h5 {[%emt 0:00:34]} 23. b4 {[%emt 0:01:28]} Qe7 {[%emt 0:00:44]} 24. Qa8 {[%emt 0:05:56]} Kh7 {[%emt 0:01:51]} 25. Qxc8 {[%emt 0:03:32]} Nxd3 {[%emt 0:00:04]} 26. Rf1 {[%emt 0:00:40]} Qxb4 {[%emt 0:01:32]} 27. cxd3 {[%emt 0:01:30]} Qxb5 {[%emt 0:00:03]} 28. Qxe6 {[%emt 0:01:08]} Qxd3 {[%emt 0:00:10]} 29. Re1 {[%emt 0:00:52]} b5 {[%emt 0:00:23]} 30. Qe2 {[%emt 0:01:17]} Qc3 {[%emt 0:00:38]} 31. Qe3 {[%emt 0:01:28]} Qa5 {[%emt 0:00:44]} 1/2-1/2

[Event "WYCC 2018 G18"]
[Site "Halkidiki"]
[Date "2018.10.22"]
[Round "4"]
[White "Koehler, Inken"]
[Black "Limanovska, Elizabete"]
[Result "1/2-1/2"]
[ECO "A20"]
[WhiteElo "1934"]
[BlackElo "2072"]
[Annotator "NA"]
[PlyCount "128"]
[EventDate "2018.10.20"]
[EventType "swiss"]
[EventCountry "GRE"]
[SourceTitle "playchess.com"]
[Source "ChessBase"]
[SourceQuality "1"]
[TimeControl "40/5400+30:1800+30"]

1. c4 {[%emt 0:00:00]} e5 {[%emt 0:00:00]} 2. g3 {[%emt 0:00:00]} Nf6 {[%emt 0:00:00]} 3. Bg2 {[%emt 0:00:00]} c6 {[%emt 0:00:05]} 4. d4 {[%emt 0:00:43]} e4 {[%emt 0:01:32]} 5. Nc3 {[%emt 0:00:41]} d5 {[%emt 0:01:24]} 6. cxd5 {[%emt 0:00:11]} cxd5 {[%emt 0:00:08]} 7. Bg5 {[%emt 0:00:42]} Nbd7 {[%emt 0:02:37]} 8. Qb3 {[%emt 0:01:29]} Bd6 {[%emt 0:03:58]} 9. Nh3 {[%emt 0:01:22]} h6 {[%emt 0:02:57]} 10. Bf4 {[%emt 0:01:15]} Bxf4 {[%emt 0:00:38]} 11. Nxf4 {[%emt 0:00:15]} Nb6 {[%emt 0:00:17]} 12. h4 {[%emt 0:04:07]} O-O {[%emt 0:02:47]} 13. O-O {[%emt 0:01:15]} Bf5 {[%emt 0:22:57]} 14. Nd1 {[%emt 0:13:54]} Qd6 {[%emt 0:15:26]} 15. Ne3 {[%emt 0:02:35]} Bd7 $11 {[%emt 0:00:11]} 16. Rfc1 {[%emt 0:13:08]} Rac8 {[%emt 0:01:47]} 17. Qd1 {[%emt 0:01:12]} g6 {[%emt 0:05:50]} 18. Rxc8 {[%emt 0:03:20]} Rxc8 {[%emt 0:00:16]} 19. Rc1 {[%emt 0:01:35]} Qb4 {[%emt 0:08:38]} 20. Rxc8+ {[%emt 0:04:02]} Bxc8 {[%emt 0:00:07]} 21. b3 {[%emt 0:00:32]} Bd7 {[%emt 0:05:19]} 22. Kh2 {[%emt 0:10:53]} Qc3 {[%emt 0:01:10]} 23. Bh3 {[%emt 0:01:35]} Bxh3 {[%emt 0:03:09]} 24. Kxh3 {[%emt 0:00:35]} h5 {[%emt 0:00:13]} 25. Kg2 {[%emt 0:03:17]} Kg7 {[%emt 0:02:15]} 26. Qc2 {[%emt 0:08:55]} Qxc2 {[%emt 0:01:42]} 27. Nxc2 {[%emt 0:00:04]} Kf8 {[%emt 0:00:15]} 28. Ne3 {[%emt 0:02:41]} Ke7 {[%emt 0:01:11]} 29. Kh3 {[%emt 0:00:17]} Kd6 {[%emt 0:02:57]} 30. g4 {[%emt 0:00:43]} hxg4+ {[%emt 0:00:31]} 31. Nxg4 {[%emt 0:00:07]} Nbd7 {[%emt 0:00:10]} 32. Kg3 {[%emt 0:06:07]} b5 {[%emt 0:05:45]} 33. Nxf6 {[%emt 0:07:22]} Nxf6 {[%emt 0:00:04]} 34. Nh3 {[%emt 0:00:08]} Ne8 {[%emt 0:01:51]} 35. Ng5 {[%emt 0:02:33]} Ke7 {[%emt 0:00:27]} 36. f3 {[%emt 0:06:11]} Nd6 {[%emt 0:02:32]} 37. fxe4 {[%emt 0:01:58]} f6 {[%emt 0:00:13]} 38. Nh3 {[%emt 0:01:07]} Nxe4+ {[%emt 0:00:38]} 39. Kf3 {[%emt 0:00:15]} g5 {[%emt 0:00:33]} 40. hxg5 {[%emt 0:00:00]} fxg5 {[%emt 0:00:00]} 41. Kg4 {[%emt 0:03:43]} Kf6 {[%emt 0:02:20]} 42. a3 {[%emt 0:02:01]} Kg6 {[%emt 0:00:40]} 43. b4 {[%emt 0:01:07]} Nf6+ {[%emt 0:00:31]} 44. Kg3 {[%emt 0:00:19]} Kf5 {[%emt 0:00:14]} 45. Kg2 {[%emt 0:01:58]} Ne4 {[%emt 0:01:10]} 46. e3 {[%emt 0:01:08]} Nd2 {[%emt 0:01:53]} 47. Nf2 {[%emt 0:01:12]} Nc4 {[%emt 0:00:19]} 48. Nd1 {[%emt 0:01:58]} Nxa3 {[%emt 0:02:00]} 49. Nc3 {[%emt 0:00:17]} Ke6 {[%emt 0:00:32]} 50. Kf3 {[%emt 0:01:44]} a6 {[%emt 0:00:44]} 51. e4 {[%emt 0:00:40]} dxe4+ {[%emt 0:02:34]} 52. Nxe4 {[%emt 0:00:08]} Nc2 {[%emt 0:02:53]} 53. Nc5+ {[%emt 0:00:48]} Kf5 {[%emt 0:00:36]} 54. Nxa6 {[%emt 0:01:16]} g4+ {[%emt 0:01:31]} 55. Kg2 {[%emt 0:02:48]} Kf4 {[%emt 0:03:11]} 56. Nc7 {[%emt 0:02:42]} Nxd4 {[%emt 0:00:09]} 57. Nd5+ {[%emt 0:00:49]} Kg5 {[%emt 0:01:54]} 58. Nc3 {[%emt 0:02:51]} Kh4 {[%emt 0:00:31]} 59. Ne4 {[%emt 0:00:50]} Nc2 {[%emt 0:01:24]} 60. Nc3 {[%emt 0:01:43]} g3 {[%emt 0:03:08]} 61. Nxb5 {[%emt 0:02:21]} Ne1+ {[%emt 0:00:29]} 62. Kg1 {[%emt 0:00:24]} Nd3 {[%emt 0:04:23]} 63. Nd4 {[%emt 0:00:15]} Nxb4 {[%emt 0:00:09]} 64. Nf5+ {[%emt 0:00:07]} Kh3 {[%emt 0:00:04]} 1/2-1/2

[Event "WYCC 2018 G18"]
[Site "Halkidiki"]
[Date "2018.10.22"]
[Round "4"]
[White "Vlkova, Anezka"]
[Black "Rakic, Tijana"]
[Result "1-0"]
[ECO "B01"]
[WhiteElo "1925"]
[BlackElo "1651"]
[Annotator "NA"]
[PlyCount "37"]
[EventDate "2018.10.20"]
[EventType "swiss"]
[EventCountry "GRE"]
[SourceTitle "playchess.com"]
[Source "ChessBase"]
[SourceQuality "1"]
[TimeControl "40/5400+30:1800+30"]

1. e4 {[%emt 0:00:00]} d5 {[%emt 0:00:15]} 2. exd5 {[%emt 0:00:00]} Qxd5 {[%emt 0:00:19]} 3. Nc3 {[%emt 0:00:00]} Qd6 {[%emt 0:00:15]} 4. d4 {[%emt 0:00:00]} Nf6 {[%emt 0:00:25]} 5. Nf3 {[%emt 0:00:18]} g6 {[%emt 0:00:38]} 6. Nb5 {[%emt 0:03:23]} Qb6 {[%emt 0:00:43]} 7. Bc4 {[%emt 0:08:18]} c6 {[%emt 0:03:10]} 8. Na3 {[%emt 0:00:07]} Bg7 {[%emt 0:00:48]} 9. O-O {[%emt 0:00:47]} O-O {[%emt 0:00:11]} 10. Re1 {[%emt 0:00:44]} Qc7 {[%emt 0:01:43]} 11. c3 {[%emt 0:00:46]} Bg4 {[%emt 0:05:10]} 12. Bg5 {[%emt 0:04:45]} b5 {[%emt 0:01:50]} 13. Bb3 {[%emt 0:01:24]} e6 {[%emt 0:05:04]} 14. h3 {[%emt 0:00:40]} Bxf3 {[%emt 0:00:15]} 15. Qxf3 {[%emt 0:00:04]} a5 {[%emt 0:03:49]} 16. Bxf6 {[%emt 0:00:30]} Bxf6 {[%emt 0:01:17]} 17. Qxf6 {[%emt 0:00:06]} Nd7 {[%emt 0:00:13]} 18. Qf3 {[%emt 0:00:49]} a4 {[%emt 0:00:17]} 19. Bc2 {[%emt 0:00:30]} 1-0

[Event "WYCC 2018 G18"]
[Site "Halkidiki"]
[Date "2018.10.22"]
[Round "4"]
[White "Kieu, Bich Thuy"]
[Black "Radeva, Viktoria"]
[Result "0-1"]
[ECO "A00"]
[WhiteElo "1913"]
[BlackElo "2163"]
[Annotator "NA"]
[PlyCount "82"]
[EventDate "2018.10.20"]
[EventType "swiss"]
[EventCountry "GRE"]
[SourceTitle "playchess.com"]
[Source "ChessBase"]
[SourceQuality "1"]
[TimeControl "40/5400+30:1800+30"]

1. g3 {[%emt 0:00:00]} d5 {[%emt 0:00:00]} 2. Bg2 {[%emt 0:00:00]} c6 {[%emt 0:00:00]} 3. Nf3 {[%emt 0:00:10]} Bg4 {[%emt 0:00:23]} 4. O-O {[%emt 0:00:37]} Nd7 {[%emt 0:00:25]} 5. d3 {[%emt 0:00:50]} Ngf6 {[%emt 0:01:54]} 6. Nc3 {[%emt 0:04:02]} e5 {[%emt 0:04:05]} 7. e4 {[%emt 0:01:56]} dxe4 {[%emt 0:01:17]} 8. dxe4 {[%emt 0:00:47]} Bb4 {[%emt 0:04:31]} 9. h3 {[%emt 0:13:23]} Bh5 {[%emt 0:06:51]} 10. Qe2 {[%emt 0:02:12]} O-O {[%emt 0:02:22]} 11. Bg5 {[%emt 0:02:37]} h6 {[%emt 0:05:48]} 12. Bxf6 {[%emt 0:02:56]} Qxf6 {[%emt 0:00:23]} 13. Rad1 {[%emt 0:08:32]} Rfd8 {[%emt 0:00:57]} 14. g4 {[%emt 0:02:23]} Bg6 {[%emt 0:02:44]} 15. Ne1 {[%emt 0:00:34]} Nf8 {[%emt 0:05:44]} 16. Nd3 {[%emt 0:08:22]} Bd6 {[%emt 0:08:28]} 17. Qe3 {[%emt 0:06:30]} Ne6 {[%emt 0:02:28]} 18. Ne2 {[%emt 0:02:38]} Bc7 {[%emt 0:04:07]} 19. Ng3 {[%emt 0:18:43]} Bb6 {[%emt 0:09:05]} 20. Qc1 {[%emt 0:02:11]} Nd4 {[%emt 0:04:27]} 21. c3 {[%emt 0:04:15]} Nf3+ {[%emt 0:00:53]} 22. Kh1 {[%emt 0:00:11]} Qh4 {[%emt 0:08:50]} 23. Qc2 {[%emt 0:02:40]} Qf6 {[%emt 0:07:53]} 24. Nf5 {[%emt 0:01:13]} Bxf5 {[%emt 0:01:23]} 25. exf5 {[%emt 0:00:35]} e4 {[%emt 0:06:12]} 26. Ne1 {[%emt 0:05:28]} Qe5 {[%emt 0:04:17]} 27. Nxf3 {[%emt 0:03:37]} exf3 {[%emt 0:00:05]} 28. Rfe1 {[%emt 0:00:18]} Rxd1 {[%emt 0:04:04]} 29. Qxd1 {[%emt 0:00:05]} fxg2+ {[%emt 0:00:05]} 30. Kxg2 {[%emt 0:00:07]} Qf4 {[%emt 0:00:23]} 31. Qf3 {[%emt 0:01:12]} Qxf3+ {[%emt 0:00:06]} 32. Kxf3 {[%emt 0:00:02]} Kf8 {[%emt 0:00:13]} 33. Re2 {[%emt 0:00:41]} Re8 {[%emt 0:00:13]} 34. Rd2 {[%emt 0:00:11]} Ke7 {[%emt 0:01:06]} 35. Kg3 {[%emt 0:01:23]} Rd8 {[%emt 0:00:35]} 36. Re2+ {[%emt 0:00:10]} Kf6 {[%emt 0:00:15]} 37. h4 {[%emt 0:00:41]} Rd3+ {[%emt 0:00:31]} 38. Kg2 {[%emt 0:00:08]} h5 {[%emt 0:01:11]} 39. f3 {[%emt 0:00:55]} Be3 {[%emt 0:01:57]} 40. Kg3 {[%emt 0:00:00]} hxg4 {[%emt 0:00:00]} 41. fxg4 {[%emt 0:02:26]} Bg5+ {[%emt 0:01:03]} 0-1

[Event "WYCC 2018 G18"]
[Site "Halkidiki"]
[Date "2018.10.22"]
[Round "4"]
[White "Gillis Onieva, Celia"]
[Black "Dimitrova, Aleksandra"]
[Result "0-1"]
[ECO "E04"]
[WhiteElo "1892"]
[BlackElo "2228"]
[Annotator "NA"]
[PlyCount "56"]
[EventDate "2018.10.20"]
[EventType "swiss"]
[EventCountry "GRE"]
[SourceTitle "playchess.com"]
[Source "ChessBase"]
[SourceQuality "1"]
[TimeControl "40/5400+30:1800+30"]

1. d4 Nf6 2. c4 e6 3. g3 d5 4. Nf3 dxc4 5. Bg2 Bd7 6. Ne5 Bc6 7. Nxc6 Nxc6 8. O-O Qd7 {E04: Open Catalan: 5 Nf3} 9. e3 O-O-O 10. Qa4 Nd5 11. Qxc4 h5 {LiveBook: 56 Games} 12. Nd2 h4 13. Nf3 hxg3 14. fxg3 $146 ({Predecessor:} 14. hxg3 f5 15. Bd2 Bd6 16. Rfc1 {0-1 (44) Laxman,R (2422)-Cornette,M (2567) Barbera del Valles 2012}) 14... f5 15. Bd2 Be7 16. Rfc1 Bf6 17. b4 g5 18. b5 Nce7 19. Rc2 Kb8 20. Rac1 Qe8 21. e4 fxe4 22. Nxg5 Nf5 23. Bxe4 Bxd4+ 24. Kh1 Nxg3+ 25. Kg2 Qh5 $19 26. Bh7 Rxh7 27. Nxh7 Nf5 28. Re1 Qg4+ 0-1

[Event "WYCC 2018 G18"]
[Site "Halkidiki"]
[Date "2018.10.22"]
[Round "4"]
[White "Dong, Khanh Linh"]
[Black "Horn, Caro"]
[Result "1-0"]
[ECO "E06"]
[WhiteElo "1879"]
[BlackElo "1133"]
[Annotator "NA"]
[PlyCount "55"]
[EventDate "2018.10.20"]
[EventType "swiss"]
[EventCountry "GRE"]
[SourceTitle "playchess.com"]
[Source "ChessBase"]
[SourceQuality "1"]
[TimeControl "40/5400+30:1800+30"]

1. d4 d5 2. Nf3 Nf6 3. c4 e6 4. g3 Be7 5. Bg2 O-O 6. O-O c5 7. dxc5 Bxc5 8. Bg5 Nbd7 9. cxd5 exd5 10. Nc3 d4 11. Nxd4 h6 12. Bxf6 Nxf6 13. Nb3 Qb6 14. Na4 Bxf2+ 15. Rxf2 Rd8 16. Nxb6 Rxd1+ 17. Rxd1 axb6 18. Rd8+ Kh7 19. e3 b5 20. Rc2 Rxa2 21. Rdxc8 Ra6 22. Nd4 Ra1+ 23. Rc1 Ra2 24. Bf1 Rxb2 25. Bd3+ g6 26. R1c7 Kg7 27. Ne6+ Kh7 28. Rxf7# 1-0

[Event "WYCC 2018 G18"]
[Site "Halkidiki"]
[Date "2018.10.22"]
[Round "4"]
[White "Nemcova, Kamila"]
[Black "Caballero Quijano, Mitzy Mishell"]
[Result "0-1"]
[ECO "C00"]
[WhiteElo "1879"]
[BlackElo "1956"]
[Annotator "NA"]
[PlyCount "94"]
[EventDate "2018.10.20"]
[EventType "swiss"]
[EventCountry "GRE"]
[SourceTitle "playchess.com"]
[Source "ChessBase"]
[SourceQuality "1"]
[TimeControl "40/5400+30:1800+30"]

1. e4 {[%emt 0:00:00]} e6 {[%emt 0:00:00]} 2. d4 {[%emt 0:00:00]} d5 {[%emt 0:00:04]} 3. Bd3 {[%emt 0:00:00]} dxe4 {[%emt 0:00:08]} 4. Bxe4 {[%emt 0:00:06]} Nf6 {[%emt 0:00:05]} 5. Bf3 {[%emt 0:00:13]} c5 {[%emt 0:00:19]} 6. Ne2 {[%emt 0:00:41]} Nc6 {[%emt 0:00:13]} 7. Be3 {[%emt 0:03:33]} cxd4 {[%emt 0:00:26]} 8. Nxd4 {[%emt 0:01:47]} Ne5 {[%emt 0:00:23]} 9. O-O {[%emt 0:06:52]} Be7 {[%emt 0:06:23]} 10. Qe2 {[%emt 0:06:49]} Nxf3+ {[%emt 0:02:07]} 11. Qxf3 {[%emt 0:05:21]} Nd5 {[%emt 0:00:44]} 12. Bd2 {[%emt 0:11:19]} Bf6 {[%emt 0:02:42]} 13. c3 {[%emt 0:02:06]} O-O {[%emt 0:06:17]} 14. Na3 {[%emt 0:03:11]} Bxd4 {[%emt 0:05:13]} 15. cxd4 {[%emt 0:00:04]} b6 {[%emt 0:07:48]} 16. Rac1 {[%emt 0:03:24]} Bb7 {[%emt 0:00:09]} 17. Qg3 {[%emt 0:00:46]} Qf6 {[%emt 0:08:26]} 18. Rfd1 {[%emt 0:04:16]} h6 {[%emt 0:04:20]} 19. Nb5 {[%emt 0:03:46]} Ne7 {[%emt 0:03:14]} 20. Nd6 {[%emt 0:09:41]} Bd5 {[%emt 0:00:58]} 21. Rc7 {[%emt 0:04:32]} Ng6 {[%emt 0:07:51]} 22. Bb4 {[%emt 0:05:50]} Nf4 {[%emt 0:02:07]} 23. Re1 {[%emt 0:05:18]} Qg6 {[%emt 0:15:42]} 24. Qxg6 {[%emt 0:08:31]} fxg6 {[%emt 0:00:11]} 25. Ne4 {[%emt 0:03:31]} Rfc8 {[%emt 0:01:03]} 26. Rxc8+ {[%emt 0:07:07]} Rxc8 {[%emt 0:00:07]} 27. Bd2 {[%emt 0:00:11]} Nd3 {[%emt 0:00:34]} 28. Re3 {[%emt 0:00:50]} Nxb2 {[%emt 0:00:13]} 29. Nc3 {[%emt 0:00:58]} Nc4 {[%emt 0:00:21]} 30. Nxd5 {[%emt 0:01:35]} exd5 {[%emt 0:00:06]} 31. Rc3 {[%emt 0:00:24]} Re8 {[%emt 0:01:10]} 32. Be3 {[%emt 0:00:25]} b5 {[%emt 0:00:06]} 33. Kf1 {[%emt 0:00:33]} b4 {[%emt 0:00:15]} 34. Rb3 {[%emt 0:00:57]} a5 {[%emt 0:00:08]} 35. Ke2 {[%emt 0:00:36]} Kf7 {[%emt 0:00:41]} 36. Kd3 {[%emt 0:00:37]} Ke6 {[%emt 0:00:11]} 37. Rb1 {[%emt 0:00:36]} Kd7 {[%emt 0:00:28]} 38. Rf1 {[%emt 0:01:16]} Kc6 {[%emt 0:00:13]} 39. Bc1 {[%emt 0:00:21]} a4 {[%emt 0:00:20]} 40. Bd2 {[%emt 0:00:00]} Rb8 {[%emt 0:00:00]} 41. Rb1 {[%emt 0:00:56]} b3 {[%emt 0:04:09]} 42. axb3 {[%emt 0:03:21]} axb3 {[%emt 0:00:37]} 43. Bc3 b2 {[%emt 0:01:28]} 44. Ke2 {[%emt 0:04:16]} Kb5 {[%emt 0:01:57]} 45. Kf3 {[%emt 0:05:36]} Ka4 {[%emt 0:00:16]} 46. Kf4 {[%emt 0:00:22]} Rf8+ {[%emt 0:00:40]} 47. Kg3 {[%emt 0:01:21]} Kb3 {[%emt 0:00:06]} 0-1

[Event "WYCC 2018 G18"]
[Site "Halkidiki"]
[Date "2018.10.22"]
[Round "4"]
[White "Nguyen, Hong Ngoc"]
[Black "Ramirez Toledo, Ayleen Maribel"]
[Result "0-1"]
[ECO "A48"]
[WhiteElo "1861"]
[BlackElo "1545"]
[Annotator "NA"]
[PlyCount "94"]
[EventDate "2018.10.20"]
[EventType "swiss"]
[EventCountry "GRE"]
[SourceTitle "playchess.com"]
[Source "ChessBase"]
[SourceQuality "1"]
[TimeControl "40/5400+30:1800+30"]

1. d4 {[%emt 0:00:00]} Nf6 {[%emt 0:00:00]} 2. Nf3 {[%emt 0:00:00]} g6 {[%emt 0:00:19]} 3. Nbd2 {[%emt 0:00:00]} Bg7 {[%emt 0:00:11]} 4. e4 {[%emt 0:00:02]} d6 {[%emt 0:00:04]} 5. Bd3 {[%emt 0:00:13]} O-O {[%emt 0:00:11]} 6. O-O {[%emt 0:00:09]} Nbd7 {[%emt 0:00:39]} 7. c3 {[%emt 0:00:36]} e5 {[%emt 0:04:50]} 8. Re1 {[%emt 0:01:01]} Ne8 {[%emt 0:02:27]} 9. Nc4 {[%emt 0:00:57]} h6 {[%emt 0:00:53]} 10. b3 {[%emt 0:00:55]} Kh8 {[%emt 0:46:47]} 11. Bc2 {[%emt 0:03:29]} Qf6 {[%emt 0:01:00]} 12. Ne3 {[%emt 0:00:58]} Nb6 {[%emt 0:01:19]} 13. Bb2 {[%emt 0:00:48]} Qe7 {[%emt 0:01:12]} 14. a4 {[%emt 0:01:04]} a5 {[%emt 0:02:42]} 15. Ba3 {[%emt 0:00:54]} Nd7 {[%emt 0:01:35]} 16. Nc4 {[%emt 0:01:15]} c5 {[%emt 0:03:32]} 17. Rb1 {[%emt 0:02:36]} Nc7 {[%emt 0:06:47]} 18. b4 {[%emt 0:03:20]} b6 {[%emt 0:03:43]} 19. dxe5 {[%emt 0:06:18]} dxe5 {[%emt 0:02:38]} 20. Ne3 {[%emt 0:02:56]} Nf6 {[%emt 0:01:28]} 21. bxc5 {[%emt 0:02:02]} bxc5 {[%emt 0:00:15]} 22. Nd5 {[%emt 0:02:56]} Nfxd5 {[%emt 0:01:50]} 23. exd5 {[%emt 0:00:14]} Qd6 {[%emt 0:00:46]} 24. c4 {[%emt 0:00:35]} f5 {[%emt 0:00:31]} 25. Nd2 {[%emt 0:02:19]} Na6 {[%emt 0:01:07]} 26. Rb5 {[%emt 0:00:35]} Bd7 {[%emt 0:03:13]} 27. Rxa5 {[%emt 0:00:32]} Nb4 {[%emt 0:00:51]} 28. Rxa8 {[%emt 0:03:44]} Rxa8 {[%emt 0:00:01]} 29. Bb3 {[%emt 0:02:04]} e4 {[%emt 0:00:15]} 30. Nf1 {[%emt 0:01:13]} Nd3 {[%emt 0:02:26]} 31. Re2 {[%emt 0:00:28]} g5 {[%emt 0:01:52]} 32. Ng3 {[%emt 0:01:21]} Be5 {[%emt 0:01:15]} 33. Bc2 {[%emt 0:02:58]} Nf4 {[%emt 0:01:07]} 34. Re1 {[%emt 0:01:42]} Ra6 {[%emt 0:06:00]} 35. Bxe4 {[%emt 0:00:58]} Bxa4 {[%emt 0:02:07]} 36. Qc1 {[%emt 0:00:11]} fxe4 {[%emt 0:01:10]} 37. Nxe4 {[%emt 0:00:08]} Qd7 {[%emt 0:00:23]} 38. Nxc5 {[%emt 0:03:21]} Qg4 {[%emt 0:00:04]} 39. g3 {[%emt 0:00:11]} Nh3+ {[%emt 0:01:14]} 40. Kf1 {[%emt 0:00:00]} Rf6 {[%emt 0:00:00]} 41. Nd3 {[%emt 0:06:01]} Bd4 {[%emt 0:10:39]} 42. Re6 {[%emt 0:08:26]} Qf3 {[%emt 0:11:31]} 43. Qd2 {[%emt 0:04:17]} Bd1 {[%emt 0:04:16]} 44. Re8+ {[%emt 0:02:50]} Kh7 {[%emt 0:00:33]} 45. Re7+ {[%emt 0:00:21]} Kg6 {[%emt 0:00:06]} 46. Ne5+ {[%emt 0:04:53]} Bxe5 {[%emt 0:00:34]} 47. Rxe5 {[%emt 0:00:53]} Qh1# 0-1